bitfinex/quotes_BTCUSD_20240703
["timestamp","ask_amount","ask_price","bid_price","bid_amount"]
[1720021877354,0.02006502,60309.0,60308.0,0.07762042]
[1720021877588,0.83084702,60309.0,60308.0,0.001]
[1720021877755,0.83084702,60309.0,60308.0,0.07862042]
[1720021877925,0.79883902,60309.0,60308.0,0.07762042]
[1720021878320,0.79883902,60309.0,60308.0,0.07752042]
[1720021878635,0.17683585,60309.0,60308.0,0.07752042]
[1720021879259,0.17683585,60309.0,60308.0,0.09336773]
[1720021879420,0.02873585,60309.0,60308.0,0.09436773]
[1720021879619,0.02873585,60309.0,60308.0,0.09336773]
[1720021880019,0.02873585,60309.0,60308.0,0.09436773]
[1720021880020,0.03873585,60309.0,60308.0,0.09436773]
[1720021880666,0.03873585,60309.0,60308.0,0.09426773]
[1720021881274,0.03957585,60309.0,60308.0,0.09426773]
[1720021882148,0.01401266,60309.0,60308.0,0.45426773]
[1720021882892,0.01084,60309.0,60308.0,0.39426773]
[1720021883091,0.01984,60309.0,60308.0,0.39426773]
[1720021883288,0.00984,60309.0,60308.0,0.39326773]
[1720021883725,0.01084,60309.0,60308.0,0.42326773]
[1720021883921,0.00984,60309.0,60308.0,0.42316773]
[1720021884132,0.00984,60309.0,60308.0,0.39306773]
[1720021884550,0.00984,60309.0,60308.0,0.37722042]
[1720021884754,0.02989353,60309.0,60308.0,0.39306773]
[1720021884983,0.03089353,60309.0,60308.0,0.39996773]
[1720021885185,0.03099353,60309.0,60308.0,0.39996773]
[1720021885368,0.00194,60309.0,60308.0,0.40006773]
[1720021885568,0.02329111,60309.0,60308.0,0.41006773]
[1720021885804,0.00294,60309.0,60308.0,0.41006773]
[1720021886435,0.00194,60309.0,60308.0,0.40006773]
[1720021887075,0.00194,60309.0,60308.0,0.40406773]
[1720021887497,0.02291501,60309.0,60308.0,0.40406773]
[1720021887730,0.02291398,60309.0,60308.0,0.40406773]
[1720021887920,0.02301791,60309.0,60308.0,0.40406773]
[1720021888100,0.02301791,60309.0,60308.0,0.40416773]
[1720021888101,0.00194,60309.0,60308.0,0.40416773]
[1720021889083,0.00194,60309.0,60308.0,0.46416773]
[1720021889255,0.00094,60309.0,60308.0,0.45716773]
[1720021889401,0.00094,60309.0,60308.0,0.43016773]
[1720021889658,0.00094,60309.0,60308.0,0.45316773]
[1720021889855,0.00094,60309.0,60308.0,0.42316773]
[1720021890094,0.00094,60309.0,60308.0,0.42816773]
[1720021890302,0.00194,60309.0,60308.0,0.46416773]
[1720021890483,0.00194,60309.0,60308.0,0.43416773]
[1720021890883,0.00194,60309.0,60308.0,0.46416773]
[1720021891084,0.00194,60309.0,60308.0,0.62446653]
[1720021891987,0.00194,60309.0,60308.0,0.92446653]
[1720021892187,0.47404,60332.0,60329.0,0.01584731]
[1720021892394,0.47404,60332.0,60326.0,0.07512042]
[1720021892395,0.43840275,60331.0,60326.0,0.07512042]
[1720021892604,0.6343388,60332.0,60328.0,0.01584731]
[1720021892605,0.30909075,60330.0,60328.0,0.01584731]
[1720021892803,0.20268642,60329.0,60328.0,0.01584731]
[1720021893027,0.20268642,60329.0,60328.0,0.01574731]
[1720021893452,0.30268642,60329.0,60328.0,0.01574731]
[1720021893651,0.12154042,60329.0,60328.0,0.01574731]
[1720021894358,0.13489012,60329.0,60328.0,0.01654731]
[1720021894565,0.03489012,60329.0,60328.0,0.01654731]
[1720021894764,0.03489012,60329.0,60328.0,0.001]
[1720021894971,0.04489012,60329.0,60328.0,0.002]
[1720021895942,0.04489012,60329.0,60328.0,0.001]
[1720021895943,0.03089012,60329.0,60328.0,0.001]
[1720021896143,0.04289012,60329.0,60328.0,0.002]
[1720021896349,0.04289012,60329.0,60328.0,0.001]
[1720021896756,0.04489012,60329.0,60328.0,0.001]
[1720021896957,1.60912692,60329.0,60328.0,0.001]
[1720021897200,2.52725761,60329.0,60328.0,0.001]
[1720021897402,2.50780661,60329.0,60328.0,0.001]
[1720021897607,2.26903077,60329.0,60328.0,0.001]
[1720021897955,0.03,60326.0,60324.0,0.07502042]
[1720021898127,2.20845649,60329.0,60320.0,0.07502042]
[1720021898128,0.03,60322.0,60320.0,0.07502042]
[1720021898366,1.04456961,60321.0,60320.0,0.07502042]
[1720021898567,1.05222761,60321.0,60320.0,0.07502042]
[1720021898691,1.03219761,60321.0,60320.0,0.07502042]
[1720021899094,0.65157739,60321.0,60320.0,0.07492042]
[1720021899317,1.009133,60322.0,60320.0,0.07492042]
[1720021899535,0.466635,60321.0,60320.0,0.07492042]
[1720021899736,0.298119,60321.0,60320.0,0.07492042]
[1720021900033,0.298019,60321.0,60320.0,0.07492042]
[1720021901862,0.399604,60321.0,60320.0,0.001]
[1720021902007,0.600224,60321.0,60320.0,0.07592042]
[1720021902258,1.06294,60321.0,60320.0,0.07592042]
[1720021902459,1.172043,60321.0,60320.0,0.07592042]
[1720021902858,1.172043,60321.0,60320.0,0.07692042]
[1720021903065,1.178043,60321.0,60320.0,0.07692042]
[1720021903382,1.177943,60321.0,60320.0,0.07692042]
[1720021903916,1.177843,60321.0,60320.0,0.07692042]
[1720021904078,1.177743,60321.0,60320.0,0.07692042]
[1720021905172,1.177743,60321.0,60320.0,0.002]
[1720021905173,1.60279771,60321.0,60320.0,0.002]
[1720021905373,1.73521771,60321.0,60320.0,0.002]
[1720021905998,1.74556355,60321.0,60320.0,0.002]
[1720021906223,1.56324668,60321.0,60320.0,0.001]
[1720021906396,1.60179937,60321.0,60320.0,0.001]
[1720021907109,1.52589011,60321.0,60320.0,0.002]
[1720021907277,1.10395931,60321.0,60320.0,0.002]
[1720021907476,1.09725931,60321.0,60320.0,0.001]
[1720021907956,1.11125931,60321.0,60320.0,0.001]
[1720021908338,1.09725931,60321.0,60320.0,0.001]
[1720021908721,1.11125931,60321.0,60320.0,0.001]
[1720021908918,1.14125931,60321.0,60320.0,0.001]
[1720021909121,1.14125931,60321.0,60315.0,0.29596508]
[1720021909287,1.19718741,60320.0,60315.0,0.29596508]
[1720021909483,0.05683841,60319.0,60315.0,0.29596508]
[1720021909773,0.14924831,60318.0,60315.0,0.29596508]
[1720021909953,0.90766041,60317.0,60315.0,0.29596508]
[1720021910174,0.49896641,60316.0,60315.0,0.29596508]
[1720021910495,0.59284168,60316.0,60315.0,0.29596508]
[1720021910694,0.60318679,60316.0,60315.0,0.29596508]
[1720021910989,0.31928682,60316.0,60315.0,0.29596508]
[1720021911150,0.31918682,60316.0,60315.0,0.29596508]
[1720021911738,0.55748682,60316.0,60315.0,0.29596508]
[1720021911951,0.56748682,60316.0,60315.0,0.29596508]
[1720021914568,0.56738682,60316.0,60315.0,0.29596508]
[1720021914771,0.56748682,60316.0,60315.0,0.29596508]
[1720021914985,0.57648682,60316.0,60315.0,0.29706508]
[1720021916743,0.5757691,60316.0,60315.0,0.29706508]
[1720021918143,0.5758691,60316.0,60315.0,0.29706508]
[1720021920137,0.57599026,60316.0,60315.0,0.29706508]
[1720021920354,0.17946226,60316.0,60315.0,0.31251239]
[1720021920741,0.08664834,60316.0,60315.0,0.31251239]
[1720021921597,0.08664834,60316.0,60315.0,0.38743281]
[1720021921829,0.08664834,60316.0,60315.0,0.41743281]
[1720021922006,0.08664834,60316.0,60315.0,0.38743281]
[1720021922213,0.07630323,60316.0,60315.0,0.38743281]
[1720021922842,0.06730323,60316.0,60315.0,0.38643281]
[1720021923042,0.06830323,60316.0,60315.0,0.39443281]
[1720021923246,0.02134511,60316.0,60315.0,0.39443281]
[1720021923399,0.04953851,60316.0,60315.0,0.39443281]
[1720021924225,0.04953851,60316.0,60315.0,0.3789855]
[1720021924438,0.59169851,60316.0,60315.0,0.3789855]
[1720021924648,0.28783851,60316.0,60315.0,0.3789855]
[1720021924932,0.37297519,60316.0,60315.0,0.3789855]
[1720021926089,0.37297519,60316.0,60315.0,0.0081]
[1720021926090,0.95262919,60316.0,60315.0,0.0081]
[1720021926361,1.02252419,60316.0,60315.0,0.08302042]
[1720021926547,0.52851264,60316.0,60315.0,0.08302042]
[1720021926739,0.51836518,60316.0,60315.0,0.0081]
[1720021926977,0.51836518,60316.0,60315.0,0.08302042]
[1720021927178,0.51736518,60316.0,60315.0,0.07502042]
[1720021927670,0.51936518,60316.0,60315.0,0.08202042]
[1720021928447,0.51936518,60316.0,60315.0,0.0071]
[1720021928651,0.51936518,60316.0,60315.0,0.08202042]
[1720021929469,0.3968,60316.0,60315.0,0.07502042]
[1720021929670,0.51675393,60316.0,60315.0,0.07502042]
[1720021929867,0.51975393,60316.0,60315.0,0.07502042]
[1720021930311,0.52375393,60316.0,60315.0,0.07502042]
[1720021932161,0.55375393,60316.0,60315.0,0.07502042]
[1720021934418,1.31100893,60316.0,60315.0,0.07502042]
[1720021936814,1.31093696,60316.0,60315.0,0.07502042]
[1720021937973,1.31093696,60316.0,60315.0,0.0001]
[1720021938179,1.31093696,60316.0,60315.0,0.07502042]
[1720021939137,1.32548965,60316.0,60315.0,0.0001]
[1720021939558,1.33583562,60316.0,60315.0,0.0001]
[1720021940550,1.93079295,60316.0,60315.0,0.0001]
[1720021940755,1.95379295,60316.0,60315.0,0.0001]
[1720021940911,1.65379295,60316.0,60315.0,0.0001]
[1720021941435,1.94979295,60316.0,60315.0,0.0001]
[1720021941940,1.97975156,60316.0,60315.0,0.0011]
[1720021942313,1.67975156,60316.0,60315.0,0.0011]
[1720021942778,1.67575156,60316.0,60315.0,0.0011]
[1720021942983,1.68475156,60316.0,60315.0,0.0011]
[1720021944605,1.53569087,60316.0,60315.0,0.0011]
[1720021944826,1.55024356,60316.0,60315.0,0.0011]
[1720021945406,0.63668856,60316.0,60315.0,0.0011]
[1720021945663,2.56136256,60316.0,60315.0,0.0011]
[1720021945864,2.33136256,60316.0,60315.0,0.0011]
[1720021946709,2.28984356,60316.0,60315.0,0.0011]
[1720021947297,2.25191987,60316.0,60315.0,0.002013]
[1720021947494,2.26647256,60316.0,60315.0,0.002013]
[1720021947719,2.26730256,60316.0,60315.0,0.002013]
[1720021948446,2.26811536,60316.0,60315.0,0.002013]
[1720021949738,2.16326567,60316.0,60315.0,0.002013]
[1720021950097,2.13644167,60316.0,60315.0,0.002013]
[1720021950505,2.15099436,60316.0,60315.0,0.002013]
[1720021950704,2.09735136,60316.0,60315.0,0.002013]
[1720021950946,1.28810487,60316.0,60315.0,0.002013]
[1720021951158,0.17217987,60316.0,60315.0,0.002013]
[1720021951287,0.07794813,60316.0,60315.0,0.46125225]
[1720021951492,0.2683,60328.0,60320.0,0.1542]
[1720021951708,0.97292829,60327.0,60322.0,0.1542]
[1720021951917,0.787639,60326.0,60322.0,0.1542]
[1720021952312,0.08157928,60325.0,60322.0,0.1542]
[1720021952511,0.509118,60324.0,60322.0,0.1542]
[1720021952714,0.1,60323.0,60322.0,0.1542]
[1720021952931,0.542718,60323.0,60322.0,0.1542]
[1720021953501,0.542718,60323.0,60320.0,0.001]
[1720021953502,0.04455269,60321.0,60320.0,0.001]
[1720021953870,2.84370369,60321.0,60320.0,0.0009]
[1720021954291,3.35923249,60321.0,60320.0,0.0009]
[1720021954462,0.04455269,60316.0,60315.0,0.000913]
[1720021954664,3.72310849,60316.0,60315.0,0.000913]
[1720021954864,4.37644951,60316.0,60315.0,0.000913]
[1720021955070,4.37654951,60316.0,60315.0,0.000913]
[1720021956177,4.38110951,60316.0,60315.0,0.000913]
[1720021956519,2.34288882,60316.0,60315.0,0.000913]
[1720021956698,2.26193982,60316.0,60315.0,0.000913]
[1720021956902,1.01377702,60316.0,60315.0,0.266813]
[1720021957098,1.04377702,60316.0,60315.0,0.145313]
[1720021957337,1.01377702,60316.0,60315.0,0.000913]
[1720021957480,1.01568702,60316.0,60315.0,0.001913]
[1720021957681,0.77738702,60316.0,60315.0,0.001913]
[1720021957913,0.932726,60316.0,60315.0,0.002913]
[1720021958178,1.03318272,60316.0,60315.0,0.002913]
[1720021958334,1.03318272,60316.0,60315.0,0.000913]
[1720021958335,1.02118272,60316.0,60315.0,0.000913]
[1720021958682,1.02918272,60316.0,60315.0,0.001913]
[1720021958856,0.96537872,60316.0,60315.0,0.001913]
[1720021959422,1.12127043,60316.0,60315.0,0.001913]
[1720021959852,0.83840843,60316.0,60315.0,0.001913]
[1720021960052,0.86840843,60316.0,60315.0,0.001913]
[1720021960497,0.88040843,60316.0,60315.0,0.002913]
[1720021960839,0.85040843,60316.0,60315.0,0.002913]
[1720021961037,0.88040843,60316.0,60315.0,0.002913]
[1720021961241,0.87739213,60316.0,60315.0,0.002913]
[1720021961458,0.89290675,60316.0,60315.0,0.002913]
[1720021963739,0.86290675,60316.0,60315.0,0.002913]
[1720021964480,0.69406,60316.0,60315.0,0.002913]
[1720021964676,0.86417059,60316.0,60315.0,0.002913]
[1720021964920,0.69406,60316.0,60315.0,0.002913]
[1720021965077,0.86416238,60316.0,60315.0,0.002913]
[1720021966595,0.84819592,60316.0,60315.0,0.002913]
[1720021967467,0.84819592,60316.0,60315.0,0.000913]
[1720021967468,0.92873692,60316.0,60315.0,0.000913]
[1720021967680,0.781601,60316.0,60315.0,0.001913]
[1720021967831,0.92205516,60316.0,60315.0,0.001913]
[1720021968043,0.92105516,60316.0,60315.0,0.001913]
[1720021968250,0.92805516,60316.0,60315.0,0.002913]
[1720021969142,0.92205516,60316.0,60315.0,0.001913]
[1720021970586,1.06326864,60316.0,60315.0,0.001913]
[1720021970986,1.05209053,60316.0,60315.0,0.001913]
[1720021971268,1.06243632,60316.0,60315.0,0.001913]
[1720021971487,0.92122284,60316.0,60315.0,0.001913]
[1720021971782,0.92122284,60316.0,60315.0,0.158313]
[1720021972699,0.14672184,60316.0,60315.0,0.24868073]
[1720021972948,0.05880423,60316.0,60315.0,0.47423655]
[1720021973191,0.05880423,60316.0,60315.0,0.63453535]
[1720021973320,0.2383,60331.0,60330.0,0.2792]
[1720021973698,0.32989583,60331.0,60330.0,0.2792]
[1720021973820,0.09159583,60331.0,60330.0,0.36956773]
[1720021974215,0.00836,60336.0,60334.0,0.01544731]
[1720021974421,0.00836,60336.0,60335.0,0.01544731]
[1720021974626,0.08797504,60336.0,60335.0,0.29374731]
[1720021975448,0.08797504,60336.0,60335.0,0.29364731]
[1720021975669,0.32500204,60336.0,60335.0,0.2783]
[1720021975829,0.42500204,60336.0,60335.0,0.2783]
[1720021976029,0.345387,60336.0,60335.0,0.2783]
[1720021976348,0.345387,60336.0,60335.0,0.29364731]
[1720021976545,0.10836,60336.0,60335.0,0.29364731]
[1720021977356,0.11536,60336.0,60335.0,0.36956773]
[1720021978171,0.02436,60336.0,60335.0,0.37056773]
[1720021978570,0.1,60343.0,60342.0,0.36286773]
[1720021978777,0.1,60343.0,60342.0,0.36276773]
[1720021978976,0.00836,60344.0,60343.0,0.01534731]
[1720021980380,0.00836,60344.0,60342.0,0.34842042]
[1720021980680,0.00836,60344.0,60343.0,0.01534731]
[1720021981317,0.02214577,60344.0,60343.0,0.01534731]
[1720021982103,0.00836,60344.0,60343.0,0.01724731]
[1720021982268,0.0591622,60346.0,60343.0,0.01724731]
[1720021982481,0.23913,60347.0,60345.0,0.01524731]
[1720021982701,0.01378576,60346.0,60345.0,0.01524731]
[1720021983159,0.23913,60347.0,60345.0,0.01524731]
[1720021983378,0.23913,60347.0,60345.0,0.01514731]
[1720021984097,0.23913,60347.0,60343.0,0.01714731]
[1720021984361,0.23913,60347.0,60343.0,0.002]
[1720021984586,0.1,60346.0,60344.0,0.01514731]
[1720021984817,0.1,60346.0,60343.0,0.01714731]
[1720021985021,0.1,60346.0,60343.0,0.01514731]
[1720021986297,0.24113,60347.0,60346.0,0.20756773]
[1720021986298,0.00283,60347.0,60346.0,0.20756773]
[1720021986697,0.00283,60347.0,60346.0,0.35126773]
[1720021987698,0.00283,60347.0,60346.0,0.35116773]
[1720021987879,0.00183,60347.0,60346.0,0.35116773]
[1720021989853,0.00383,60347.0,60346.0,0.35116773]
[1720021990059,0.00383,60347.0,60346.0,0.35126773]
[1720021992030,0.00393,60347.0,60346.0,0.35126773]
[1720021993767,0.00393,60347.0,60346.0,0.38126773]
[1720021994173,0.00393,60347.0,60346.0,0.38116773]
[1720021995213,0.00836,60348.0,60347.0,0.41256773]
[1720021995379,0.00836,60348.0,60347.0,0.65292235]
[1720021995819,0.00836,60348.0,60347.0,0.62302235]
[1720021996015,0.00836,60348.0,60347.0,0.62292235]
[1720021996221,0.00836,60355.0,60354.0,0.08986773]
[1720021996364,0.00836,60355.0,60354.0,0.55036653]
[1720021996765,0.00836,60355.0,60354.0,0.52036653]
[1720021997189,0.00836,60355.0,60354.0,0.52026653]
[1720021997392,0.00836,60355.0,60354.0,0.35996773]
[1720021997767,0.00856,60355.0,60354.0,0.22802042]
[1720021997904,0.00856,60355.0,60354.0,0.07472042]
[1720021998106,0.10856,60355.0,60354.0,0.07472042]
[1720021998306,0.0002,60353.0,60352.0,0.07472042]
[1720021998850,0.0002,60353.0,60348.0,0.1172]
[1720021998851,0.0002,60349.0,60348.0,0.07472042]
[1720021999050,1.04451,60349.0,60348.0,0.07472042]
[1720021999253,1.244601,60349.0,60348.0,0.07472042]
[1720021999806,1.244601,60349.0,60339.0,0.2598]
[1720021999807,0.0002,60343.0,60339.0,0.2598]
[1720022000104,0.2385,60342.0,60341.0,0.07472042]
[1720022000266,0.952039,60342.0,60341.0,0.07472042]
[1720022000439,0.828449,60342.0,60341.0,0.07472042]
[1720022000637,0.0002,60341.0,60340.0,0.07472042]
[1720022000849,0.622147,60341.0,60340.0,0.07472042]
[1720022002289,0.586147,60341.0,60340.0,0.07472042]
[1720022003112,0.299445,60341.0,60340.0,0.08976773]
[1720022003288,0.1002,60341.0,60340.0,0.08976773]
[1720022004007,0.1002,60341.0,60340.0,0.07472042]
[1720022004209,0.1,60341.0,60340.0,0.08976773]
[1720022004439,0.002,60342.0,60341.0,0.08976773]
[1720022005021,0.002,60342.0,60341.0,0.09308189]
[1720022005431,0.0001,60347.0,60346.0,0.01504731]
[1720022006021,0.0001,60347.0,60345.0,0.01504731]
[1720022006022,0.0002,60346.0,60345.0,0.01504731]
[1720022006414,0.0002,60346.0,60344.0,0.08976773]
[1720022006620,0.0002,60346.0,60345.0,0.01504731]
[1720022007246,0.0002,60346.0,60344.0,0.08976773]
[1720022007455,0.0002,60345.0,60344.0,0.08976773]
[1720022007660,0.0002,60346.0,60345.0,0.08976773]
[1720022008214,0.0002,60346.0,60345.0,0.07472042]
[1720022008421,0.0003,60347.0,60346.0,0.01504731]
[1720022009782,0.0002,60346.0,60345.0,0.07572042]
[1720022009991,0.2385,60346.0,60345.0,0.07472042]
[1720022010188,0.3385,60346.0,60345.0,0.07472042]
[1720022010817,0.3385,60346.0,60345.0,0.07772042]
[1720022011367,0.3385,60346.0,60345.0,0.07472042]
[1720022011772,0.3385,60346.0,60344.0,0.07472042]
[1720022011971,0.3385,60346.0,60345.0,0.07472042]
[1720022013277,0.3395,60346.0,60345.0,0.07472042]
[1720022013693,0.3385,60346.0,60345.0,0.07472042]
[1720022013891,0.0002,60344.0,60343.0,0.07472042]
[1720022017355,0.0032,60344.0,60343.0,0.07472042]
[1720022018036,0.742935,60344.0,60342.0,0.07472042]
[1720022018411,1.150166,60343.0,60342.0,0.07472042]
[1720022018588,1.108683,60343.0,60342.0,0.07472042]
[1720022018767,0.0002,60342.0,60341.0,0.07472042]
[1720022018926,0.512342,60342.0,60341.0,0.07472042]
[1720022019132,0.508752,60342.0,60341.0,0.07472042]
[1720022021633,0.508752,60342.0,60340.0,0.000913]
[1720022021634,0.01515269,60341.0,60340.0,0.000913]
[1720022021849,1.44089707,60341.0,60340.0,0.000913]
[1720022022016,1.51408114,60341.0,60340.0,0.000913]
[1720022022499,1.51408897,60341.0,60340.0,0.000913]
[1720022023139,1.63830999,60341.0,60340.0,0.000913]
[1720022023562,1.93830999,60341.0,60340.0,0.000913]
[1720022023757,1.93930999,60341.0,60340.0,0.001913]
[1720022023965,1.63930999,60341.0,60340.0,0.001913]
[1720022024119,1.63830999,60341.0,60340.0,0.000913]
[1720022024325,1.64630999,60341.0,60340.0,0.002913]
[1720022024732,1.64530999,60341.0,60340.0,0.001913]
[1720022024957,1.64530999,60341.0,60333.0,0.07472042]
[1720022024958,0.01495269,60336.0,60333.0,0.07472042]
[1720022025162,0.2382,60334.0,60333.0,0.07472042]
[1720022025354,1.55036772,60334.0,60333.0,0.07472042]
[1720022025623,0.0002,60330.0,60329.0,0.35252042]
[1720022026019,0.01398954,60330.0,60329.0,0.35252042]
[1720022027316,0.01398954,60330.0,60329.0,0.07472042]
[1720022027511,0.01498954,60330.0,60329.0,0.07472042]
[1720022027877,0.01898954,60330.0,60329.0,0.07472042]
[1720022028699,0.25698954,60330.0,60329.0,0.07472042]
[1720022028899,0.3432,60330.0,60329.0,0.07472042]
[1720022029099,0.35699045,60330.0,60329.0,0.07472042]
[1720022029336,0.35698991,60330.0,60329.0,0.07472042]
[1720022029746,0.41765953,60330.0,60329.0,0.07472042]
[1720022031163,0.41765953,60330.0,60327.0,0.07472042]
[1720022031164,0.0002,60328.0,60327.0,0.07472042]
[1720022031342,0.0002,60328.0,60322.0,0.1538]
[1720022031343,0.0002,60325.0,60324.0,0.07472042]
[1720022031547,0.2382,60325.0,60324.0,0.07472042]
[1720022031721,0.35198991,60325.0,60324.0,0.07472042]
[1720022031924,0.35199216,60325.0,60324.0,0.07472042]
[1720022032187,0.41272449,60325.0,60324.0,0.07472042]
[1720022033810,0.0002,60323.0,60322.0,0.22852042]
[1720022034125,0.01399216,60323.0,60322.0,0.22852042]
[1720022035162,0.0002,60323.0,60322.0,0.22852042]
[1720022035483,0.0002,60322.0,60321.0,0.07472042]
[1720022035689,0.0002,60318.0,60317.0,0.07472042]
[1720022035830,0.25199264,60318.0,60317.0,0.07472042]
[1720022036035,0.35199264,60318.0,60317.0,0.07472042]
[1720022037071,0.35199264,60318.0,60317.0,0.07467282]
[1720022037486,0.35399264,60318.0,60317.0,0.07567282]
[1720022037685,0.35399264,60318.0,60317.0,0.001]
[1720022037914,0.35199264,60318.0,60316.0,0.07467282]
[1720022038112,0.11399264,60317.0,60316.0,0.07467282]
[1720022038474,0.01515269,60316.0,60315.0,0.000913]
[1720022038618,1.24133069,60316.0,60315.0,0.000913]
[1720022038878,1.26151648,60316.0,60315.0,0.000913]
[1720022039085,1.32312698,60316.0,60315.0,0.000913]
[1720022041047,1.32512698,60316.0,60315.0,0.001913]
[1720022041254,1.32312698,60316.0,60315.0,0.000913]
[1720022041468,1.38313179,60316.0,60315.0,0.000913]
[1720022041675,1.62569823,60316.0,60315.0,0.001913]
[1720022041853,1.32569823,60316.0,60315.0,0.001913]
[1720022042054,1.24972269,60316.0,60315.0,0.001913]
[1720022042258,1.32569819,60316.0,60315.0,0.001913]
[1720022042459,1.32369819,60316.0,60315.0,0.000913]
[1720022043127,1.62369819,60316.0,60315.0,0.000913]
[1720022043504,1.78399699,60316.0,60315.0,0.000913]
[1720022043712,0.01495269,60308.0,60306.0,0.2789]
[1720022043928,0.88430258,60307.0,60306.0,0.2789]
[1720022044148,0.94278258,60307.0,60306.0,0.159]
[1720022044311,0.01515269,60304.0,60303.0,0.1249]
[1720022044509,0.0002,60303.0,60302.0,0.1457]
[1720022044784,0.268,60303.0,60302.0,0.1457]
[1720022045050,0.28179821,60303.0,60302.0,0.1457]
[1720022045284,0.28179823,60303.0,60302.0,0.1457]
[1720022045807,0.28179823,60303.0,60302.0,0.1467]
[1720022047021,0.38179823,60303.0,60302.0,0.1467]
[1720022047237,0.38179823,60303.0,60302.0,0.1457]
[1720022047438,0.38379823,60303.0,60302.0,0.1457]
[1720022048118,0.38579823,60303.0,60302.0,0.1467]
[1720022048833,0.38579826,60303.0,60302.0,0.1467]
[1720022049009,0.73595126,60303.0,60302.0,0.1467]
[1720022049617,0.73605126,60303.0,60302.0,0.1467]
[1720022049954,0.73605126,60303.0,60302.0,0.001]
[1720022050196,0.73605126,60303.0,60302.0,0.002]
[1720022050197,0.74198953,60303.0,60302.0,0.002]
[1720022051462,0.74198961,60303.0,60302.0,0.002]
[1720022051628,1.04198961,60303.0,60302.0,0.002]
[1720022051995,0.74198961,60303.0,60302.0,0.002]
[1720022052196,1.63348737,60303.0,60302.0,0.002]
[1720022052396,1.29128841,60303.0,60302.0,0.002]
[1720022053555,1.28728841,60303.0,60302.0,0.001]
[1720022053699,0.02993827,60298.0,60295.0,0.07467282]
[1720022053914,0.26793827,60296.0,60295.0,0.07467282]
[1720022054116,0.36793827,60296.0,60295.0,0.07467282]
[1720022054660,0.85021827,60296.0,60295.0,0.07467282]
[1720022054960,0.02993827,60294.0,60293.0,0.34757282]
[1720022055177,0.22029127,60294.0,60293.0,0.34757282]
[1720022055368,0.32029127,60294.0,60293.0,0.34757282]
[1720022055776,0.32029127,60294.0,60293.0,0.2729]
[1720022056008,0.290353,60294.0,60293.0,0.2729]
[1720022056639,0.300353,60294.0,60293.0,0.2739]
[1720022056843,0.11,60294.0,60293.0,0.2739]
[1720022057042,0.1,60295.0,60293.0,0.2729]
[1720022057445,0.01,60294.0,60293.0,0.2739]
[1720022057729,1.506354,60294.0,60293.0,0.2739]
[1720022057930,0.696417,60294.0,60293.0,0.2739]
[1720022058488,0.458417,60294.0,60293.0,0.2739]
[1720022058692,0.696417,60294.0,60293.0,0.2739]
[1720022058891,0.819217,60294.0,60293.0,0.2729]
[1720022059089,0.829217,60294.0,60293.0,0.2749]
[1720022059339,0.455557,60294.0,60293.0,0.2749]
[1720022059661,0.693557,60294.0,60293.0,0.2749]
[1720022059865,0.11,60294.0,60293.0,0.2749]
[1720022059989,0.248,60294.0,60293.0,0.2749]
[1720022060192,0.348,60294.0,60293.0,0.2749]
[1720022060401,0.348,60294.0,60293.0,0.2739]
[1720022060804,0.357,60294.0,60293.0,0.2749]
[1720022061205,0.589719,60294.0,60293.0,0.2749]
[1720022061438,0.579712,60294.0,60293.0,0.2749]
[1720022062165,0.558662,60294.0,60293.0,0.2749]
[1720022062668,0.531168,60294.0,60293.0,0.2749]
[1720022063077,0.54496806,60294.0,60293.0,0.2749]
[1720022063652,0.293168,60294.0,60293.0,0.2749]
[1720022063854,0.54496803,60294.0,60293.0,0.2749]
[1720022064237,0.531168,60294.0,60293.0,0.2749]
[1720022064441,0.54496803,60294.0,60293.0,0.2749]
[1720022064667,0.119,60294.0,60293.0,0.46000168]
[1720022064881,0.119,60294.0,60293.0,0.42972864]
[1720022064882,0.019,60294.0,60293.0,0.42972864]
[1720022065082,0.119,60294.0,60293.0,0.34957282]
[1720022065904,0.109,60294.0,60293.0,0.34857282]
[1720022066045,0.238,60294.0,60293.0,0.34757282]
[1720022066250,0.35641897,60294.0,60293.0,0.34757282]
[1720022066540,0.36441897,60294.0,60293.0,0.34857282]
[1720022066906,0.37341897,60294.0,60293.0,0.34957282]
[1720022067107,0.74094797,60294.0,60293.0,0.34957282]
[1720022067308,0.709529,60294.0,60293.0,0.34757282]
[1720022067510,0.72409241,60294.0,60293.0,0.34757282]
[1720022067723,0.73309241,60294.0,60293.0,0.34857282]
[1720022067926,0.72388999,60294.0,60293.0,0.34757282]
[1720022068445,0.71988999,60294.0,60293.0,0.34757282]
[1720022069355,0.72988999,60294.0,60293.0,0.34857282]
[1720022070267,1.08700699,60294.0,60293.0,0.34857282]
[1720022070483,1.08710266,60294.0,60293.0,0.34857282]
[1720022070684,1.08710266,60294.0,60293.0,0.001]
[1720022070908,1.13897914,60294.0,60293.0,0.002]
[1720022071104,1.13897914,60294.0,60293.0,0.001]
[1720022071332,1.81539246,60294.0,60293.0,0.001]
[1720022071567,0.3722,60286.0,60285.0,0.009174]
[1720022071737,0.3,60282.0,60271.0,0.07467282]
[1720022071937,3.67269746,60286.0,60271.0,0.07467282]
[1720022071938,2.71496466,60281.0,60271.0,0.07467282]
[1720022072158,0.238,60272.0,60271.0,0.07467282]
[1720022072283,0.35245666,60272.0,60271.0,0.07467282]
[1720022072670,0.39633314,60272.0,60271.0,0.07467282]
[1720022073625,0.41641391,60272.0,60271.0,0.07567282]
[1720022074610,0.43041391,60272.0,60271.0,0.07667282]
[1720022075150,0.41641391,60272.0,60271.0,0.07567282]
[1720022075380,0.42341391,60272.0,60271.0,0.07567282]
[1720022075903,0.41941391,60272.0,60271.0,0.07567282]
[1720022076327,0.42241391,60272.0,60271.0,0.07567282]
[1720022077390,0.18441391,60272.0,60271.0,0.07567282]
[1720022077563,0.32241391,60272.0,60271.0,0.07567282]
[1720022077769,0.42241391,60272.0,60271.0,0.07567282]
[1720022078776,0.37853743,60272.0,60271.0,0.07567282]
[1720022079801,0.37863743,60272.0,60271.0,0.07567282]
[1720022080014,0.3581,60272.0,60271.0,0.07567282]
[1720022080209,0.378719,60272.0,60271.0,0.07567282]
[1720022082703,0.140719,60272.0,60271.0,0.07567282]
[1720022082918,0.278719,60272.0,60271.0,0.07567282]
[1720022083083,0.42259548,60272.0,60271.0,0.07567282]